Cogmind - Beta 16 @@@ ROGUE MODE // 2025.10.31 @ 08:20:08 Player: AussieBBQ Result: Destroyed by S-10 Pest with Light Assault Rifle Performance ------------- Evolutions (0) 0 Regions Visited (1) 200 Robots Destroyed (9) 45 Value Destroyed (250) 250 Prototype IDs (3) 60 Alien Tech Used (0) 0 Bonus (0) 0 TOTAL SCORE: 555 Bonus ------- None Cogmind --------- Core Integrity 0/250 Matter 297/300 Energy 100/100 System Corruption 0% Temperature Cool (0) Movement Core (700) Ox13 Location -10/Materials Parts ------- > --- POWER (1) -------- (None) > --- PROPULSION (2) --- (None) > --- UTILITY (2) ------ High-capacity Storage Unit > --- WEAPON (2) ------- (None) > --- INVENTORY (20) --- Light Ion Engine Aluminum Leg Aluminum Leg Aluminum Leg Aluminum Leg Compact Wheel Compact Wheel Small Storage Unit EM Pulse Gun Grenade Launcher Grenade Launcher Peak State ------------ > --- POWER ------------ Ion Engine > --- PROPULSION ------- Light Treads Light Treads > --- UTILITY ---------- High-capacity Storage Unit Seismic Detector > --- WEAPON ----------- Small Laser Light Assault Rifle > --- INVENTORY -------- Light Ion Engine Aluminum Leg Aluminum Leg Aluminum Leg Compact Wheel Compact Wheel Small Storage Unit EM Pulse Gun Grenade Launcher Grenade Launcher [Rating: 8] Favorites ----------- Power Ion Engine Engine Ion Engine Propulsion Light Treads Treads Light Treads Leg Aluminum Leg Utility Seismic Detector Device Seismic Detector Storage High-capacity Storage Unit Weapon Small Laser Energy Gun Small Laser Ballistic Gun Light Assault Rifle Build | -11 -10 ------- Run | Yrd Mat Slots Evolved . | . . Power . | . . Propulsion . | . . Utility . | . . Weapon . | . . Parts Attached 5 | 2 3 Power . | . . Engine . | . . Core . | . . Reactor . | . . Propulsion 2 | . 2 Treads 2 | . 2 Leg . | . . Wheel . | . . Hover . | . . Flight . | . . Utility 2 | 1 1 Device 1 | 1 . Storage 1 | . 1 Processor . | . . Hackware . | . . Protection . | . . Artifact . | . . Weapon 1 | 1 . Energy Gun . | . . Energy Cannon . | . . Ballistic Gun 1 | 1 . Ballistic Cannon . | . . Launcher . | . . Special Weapon . | . . Impact Weapon . | . . Slashing Weapon . | . . Piercing Weapon . | . . Special Melee Weapon . | . . Unidentified Prototypes . | . . Parts Lost 2 | . 2 Power 1 | . 1 Propulsion . | . . Utility . | . . Weapon 1 | . 1 Highest Loss Streak 2 | . 2 To Critical Strikes . | . . Average Backups 8 | 6 9 Power 1 | 1 1 Propulsion 4 | 4 4 Utility . | . . Weapon 2 | 1 2 Tool/Special . | . . Unused Backups 15 | 5 10 Power 3 | 1 2 Propulsion 6 | 2 4 Utility 1 | 1 . Weapon 5 | 1 4 Tool/Special . | . . Average Slot Usage (%) 90 | . 90 Engine 10 | . 10 Treads 21 | . 21 Leg 4 | . 4 Device 13 | . 13 Storage 14 | . 14 Energy Gun 12 | . 12 Ballistic Gun 13 | . 13 Peak Build Rating 8 | 7 8 Average Rating 6 | 6 6 On Entrance 6 | 6 7 Avg Prop Armor Cover (%) . | . . Naked Turns . | . . Heaviest Build 48 | 13 48 Greatest Support 40 | 20 40 Greatest Overweight (x) 13 | . 13 Average Overweight (x) . | . 1 Largest Inventory Capacity 20 | 8 20 Average Capacity 16 | 8 18 Most Carried 11 | 6 11 Average Carried 8 | 6 9 Final Capacity 20 | 8 20 Final Carried 11 | 6 11 Class Distribution -------------------- 100% | Mutant Dominant Class ---------------- Mutant | -10/Materials Resources | -11 -10 ----------- Run | Yrd Mat Matter Collected 271 | 200 71 Remotely . | . . Salvage Created 385 | 127 258 Parts 17 | 4 13 Haulers Intercepted . | . . Recyclers Shooed . | . . Parts Field Recycled . | . . Retrieved Matter . | . . Parts Self-Destructed . | . . Prevented . | . . Parts Restored . | . . Kills | -11 -10 ------- Run | Yrd Mat Combat Hostiles Destroyed 6 | . 6 Guns 6 | . 6 Classes Destroyed 3 | 2 1 Tunneler 2 | 2 . Recycler 1 | 1 . Grunt 6 | . 6 Best Kill Streak 3 | 2 3 Combat Bots Only 3 | . 3 Max Kills in Single Turn 1 | 1 1 Gunslinging . | . . Exploded . | . . Melee . | . . Uniques/NPCs Destroyed . | . . Combat | -11 -10 -------- Run | Yrd Mat Hostile Shots Fired 115 | . 115 Missed 37 | . 37 Hits 78 | . 78 Projectile 78 | . 78 Damage Taken 790 | . 790 Core 250 | . 250 Absorbed by Shields . | . . Core Remaining (%) 100 | 100 . Volleys Fired 34 | 7 27 Largest 2 | 2 2 Hottest 80 | 80 60 Shots Fired 66 | 14 52 Gun 66 | 14 52 Cannon . | . . Launcher . | . . Special . | . . Kinetic 29 | 2 27 Thermal 32 | 7 25 Explosive . | . . Electromagnetic 5 | 5 . Robot Hit Streak 11 | 11 7 Robot Miss Streak 2 | 1 2 Penetration Max . | . . Secondary Targets 2 | . 2 Max Gunslinging Chain 1 | . 1 Shots Hit Robots 48 | 12 36 Core Hits 22 | 4 18 Critical Kills . | . . Critical Parts Destroyed . | . . Critical Strikes . | . . Melee Attacks . | . . Impact . | . . Slashing . | . . Piercing . | . . Sneak Attacks . | . . Combat Hostiles . | . . Follow-up Attacks . | . . Damage Inflicted 487 | 146 341 Guns 487 | 146 341 Cannons . | . . Explosions . | . . Melee . | . . Ramming . | . . Kinetic 149 | 10 139 Thermal 272 | 70 202 Explosive . | . . Electromagnetic 66 | 66 . Impact . | . . Slashing . | . . Piercing . | . . Highest Corruption . | . . Average Corruption . | . . Corruption Purged . | . . Corruption Blocked . | . . Overload Shots . | . . Overflow Damage . | . . Projectiles . | . . Explosions . | . . Melee . | . . Knockbacks . | . . Impact . | . . Kinetic . | . . Secondary . | . . Self-Inflicted Damage . | . . Shots . | . . Rammed . | . . Targets Rammed . | . . Kicked . | . . Crushed . | . . Highest Temperature 115 | 90 115 Average Temperature 40 | 40 40 Received Heat Transfer 282 | . 282 Siege Activations . | . . Martial Activations . | . . Shielding Activations . | . . Robots Disrupted . | . . Combat Hostiles . | . . Robots Corrupted . | . . Combat Hostiles . | . . Parts Fried . | . . Impact Corruptions . | . . Robots Melted . | . . Combat Hostiles . | . . Parts Melted 1 | 1 . Heat Transferred 625 | 150 475 Parts Sabotaged . | . . Parts Stolen . | . . Parts Stripped . | . . Power Chain Reactions . | . . Alert | -11 -10 ------- Run | Yrd Mat Maximum Alert Level . | . . Low Security (%) 100 | 100 100 Level 1 . | . . Level 2 . | . . Level 3 . | . . Level 4 . | . . Level 5 . | . . High Security . | . . Max Security . | . . Peak Influence 80 | 10 80 Initial . | . . Average 17 | 1 21 Influence Increases 195 | 15 180 Destroy 0b10 Robot/C 120 | . 120 Destroy 0b10 Robot/NC 15 | 15 . Destroy Leader 40 | . 40 Successful Hack 20 | . 20 Influence Decreases 125 | 15 110 Time Decay 105 | 15 90 Lost Part 20 | . 20 Squads Dispatched 4 | . 4 Investigation 2 | . 2 Extermination . | . . Reinforcement 2 | . 2 Assault . | . . Garrison . | . . Intercept . | . . Searches Triggered . | . . Construction Impeded . | . . Haulers Reinforced . | . . Active Scanning Responses . | . . Cargo Convoy Interrupts . | . . Stealth | -11 -10 --------- Run | Yrd Mat Distress Signals 2 | . 2 Communications Jammed . | . . Distress Signals . | . . Times Spotted 16 | . 16 Peak Tracking Total 8 | . 8 Tactical Retreats . | . . Traps | -11 -10 ------- Run | Yrd Mat Traps Triggered 5 | . 5 Indirectly . | . . Trap Hack Attempts . | . . Triggered . | . . Disarmed . | . . Reprogrammed . | . . Reused . | . . Traps Extracted . | . . Installed . | . . Triggered . | . . Machines | -11 -10 ---------- Run | Yrd Mat Machines Disabled . | . . Max in Single Turn . | . . Machines Repaired . | . . Machines Dismantled . | . . Machines Sabotaged . | . . Overloaded Fab Kills . | . . Hacking | -11 -10 --------- Run | Yrd Mat Machines Accessed 2 | . 2 Terminals 1 | . 1 Fabricators . | . . Repair Stations . | . . Recycling Units 1 | . 1 Scanalyzers . | . . Garrison Access . | . . Total Hacks 5 | . 5 Successful 2 | . 2 Failed 3 | . 3 Catastrophic . | . . Database Lockouts . | . . Manual 3 | . 3 Terminals 2 | . 2 Fabricators . | . . Repair Stations . | . . Recycling Units 3 | . 3 Scanalyzers . | . . Garrison Access . | . . Terminal Hacks 1 | . 1 Prototype ID Bank 1 | . 1 Fabricator Hacks . | . . Repair Station Hacks . | . . Recycling Unit Hacks . | . . Scanalyzer . | . . Garrison Access Hacks . | . . Unauthorized Hacks 1 | . 1 Terminals . | . . Fabricators . | . . Repair Stations . | . . Recycling Units 1 | . 1 Mask 1 | . 1 Scanalyzers . | . . Garrison Access . | . . Data Cores Recovered . | . . Used . | . . Hacking Detections 2 | . 2 Full Trace Events . | . . Feedback Events . | . . Feedback Blocked . | . . Robot Schematics Acquired . | . . Robots Built . | . . Authchips . | . . Time . | . . Total Robot Build Rating . | . . Part Schematics Acquired . | . . Parts Built . | . . Authchips . | . . Time . | . . Total Part Build Rating . | . . Part Studies Acquired . | . . Parts Repaired . | . . Time . | . . Parts Recycled . | . . Recycled Matter . | . . Retrieved Matter . | . . Retrieved Components . | . . Parts Scanalyzed . | . . Part Schematics Acquired . | . . Parts Damaged . | . . Bothacking | -11 -10 ------------ Run | Yrd Mat Used RIF Installer . | . . Robots Hacked . | . . Non-combat . | . . Combat . | . . Robot Hacks Applied . | . . Relay Couplers Released . | . . Fabnet Peak Effective % . | . . Robots Rewired . | . . Allies Hacked . | . . Hacks Repelled . | . . Allies | -11 -10 -------- Run | Yrd Mat Total Allies . | . . Largest Group . | . . Highest-Rated Group . | . . Highest-Rated Ally . | . . Total Orders . | . . Ally Attacks . | . . Total Damage . | . . Kills . | . . Allies Corrupted . | . . Allies Melted . | . . Intel | -11 -10 ------- Run | Yrd Mat Active Infowar (turns) 257 | 1 256 Seismic 257 | 1 256 Robot Analysis Total . | . . Derelict Logs Recovered . | . . Drone Launches . | . . Drone Recoveries . | . . Exploration | -11 -10 ------------- Run | Yrd Mat Turns Passed 341 | 66 275 Spaces Moved 115 | 26 89 Core 3 | . 3 Treads 59 | . 59 Legs 53 | 26 27 Wheels . | . . Hover . | . . Flight . | . . Fastest Speed 120 | 120 120 Average Speed 197 | 120 220 Slowest Speed 700 | 120 700 Overloaded Moves . | . . Propulsion Burnouts . | . . Robots Hopped . | . . Potential Cave-ins . | . . Cave-ins Triggered . | . . Exploration Rate (%) 17 | 3 31 Regions Visited 1 Branch Regions . Pre-discovered Areas . | . . Known Exits Taken . | . . Unknown Exits Taken 1 | 1 . Scrap Searched . | . . Spaces Dug . | . . Terrain Destroyed . | . . Melee . | . . Projectile . | . . AOE . | . . Terrain Rammed . | . . Walls Destroyed . | . . Machines Disabled . | . . Actions | -11 -10 --------- Run | Yrd Mat Total 171 | 46 125 Wait 13 | 12 1 Move 114 | 25 89 Hop . | . . Pick Up 5 | . 5 Fast Attach 1 | 1 . Attach . | . . Detach . | . . Swap 4 | 1 3 Drop . | . . Fire 34 | 7 27 Melee . | . . Ram . | . . Kick . | . . Crush . | . . Escape Stasis . | . . Rewire . | . . Trap . | . . Miscellaneous . | . . Route ------- -11/Scrapyard -10/Materials (discovered 2 exits: [*Min] / [*Sub]) History --------- Turn | Location | Event 1 | -11/Scrapyard | Discovered new exit (range 3) 67 | -11/Scrapyard | Entered Materials 285 | -10/Materials | Discovered new exit (range 13) 302 | -10/Materials | Build established: Mutant 326 | -10/Materials | Discovered new exit (range 13) 331 | -10/Materials | Core integrity fell below 50% 339 | -10/Materials | Core integrity fell below 20% 342 | -10/Materials | Destroyed by S-10 Pest with Light Assault Rifle Last Messages --------------- 00326_ An alarm sounds. 00326_ ALERT: Alarm triggered, dispatching investigation squad. 00327_ U-05 Engineer lays Concrete. 00328_ R-06 Scavenger collects Aluminum Leg. 00328_ K-01 Serf collects debris. 00329_ U-05 Engineer lays Concrete. 00329_ K-01 Serf collects debris. 00331_ U-05 Engineer lays Concrete. 00332_ K-01 Serf collects debris. 00333_ Triggered Blade Trap. 00333_ Massive razor-sharp blades shoot up from within the floor. 00334_ U-05 Engineer lays Concrete. 00336_ K-01 Serf collects debris. 00337_ U-05 Engineer lays Concrete. 00340_ W-16 Scout sends out distress signal. 00340_ K-01 Serf collects debris. 00340_ S-10 Pest destroyed. 00341_ K-01 Serf collects debris. Map ----- +----------------------------------------------------+ | ?????????????????????????????????????????????????? | | ?????????????????????????????????????????????????? | | ?????????????????????????????????????????????????? | | ?????????????????????????????????????????????????? | | ?????????????????????????????????????????????????? | | ?????????????????????????????????????????????????? | | ?????????????????????????????????????????????????? | | ?????????????????????????????????????????????????? | | ?????????????????????????????????????????????????? | | ?????????????????????????????????????????????????? | | ?????????????????????????????????????????????????? | | ?????????????????????????????????????????????????? | | ?????????????????????????????????????????????????? | | ?????????????????????????????????????????????????? | | ?????????????????????????????????????????????????? | | ??????????????????? ?????????????????????????????? | | ??????????????######/????????????????????????????? | | ?????????????? ????????????????????????????? | | ???????????????? ???????????????????????????? | | ????????????????? ???? ??????????????????????? | | ??????????????????# ####+###? ?????????????????? | | ??????????????????# ##+######## ????????? | | ??????????????????# g ????????? | | ??????????????????# g ???????? | | ??????????????????# ^ gw ???????? | | ??????????????????# @ [%#####??????????? | | ?????????????###### !![%!# #??????????? | | ??????????? != !! u #??????????? | | ????????????######## [= ! # <#?????????? | | ???????????????????# [%= #???##?????????? | | ???????????? "!"???# ss #??????????????? | | ???????????# # * k ##?????????????? | | ?????????? [% T ?????????????? | | ?????????? < % =% ##?????????????? | | ?????????? %* ##?????????????? | | ???????????# # """""%% #### ?????? | | ???????????######### """""r ?????? | | ????????????? k """"" k T ??????? | | ????????????? ?????? | | ????????????? #### ?????? | | ????????????? ###+###?????????????? | | ????????????? #???????????????????? | | ????????????? #?????????? ??????? | | ????????????? #?????????# ??????? | | ??????????????############## #?????????# #?????? | | ?????????????????########### #?????????# #?????? | | ?????????????????# """"" ! # #?????????# #?????? | | ?????????????????# ""T"" #*########### #?????? | | ?????????????????# #[ # ## #?????? | | ?????????????????# """ """ + # ## #?????? | +----------------------------------------------------+ Best States ------------- Heat Dissipation 25 Energy Generation 10 Energy Capacity 250 Matter Stores 300 Matter Capacity 300 Sight Range 16 Terrain Scan Density 10 Evasion (%) 55 Recoil Reduction 2 Item Schematics ----------------- None Robot Schematics ------------------ None Fabricated ------------ Nothing Repaired ---------- Nothing Studied --------- None Alien Tech Used ----------------- None Achievements -------------- None Challenges ------------ None Game ------ Seed BottomlessElectronBiocell Manual? 0 Play Time 00:04:29 Cumulative 36.4 hours Start 2025.10.31 @ 08:17:39 End 2025.10.31 @ 08:20:08 Sessions 1 Manual Loads 0 Difficulty Rogue Special Mode None Game No. 55 Rogue 55 Adventurer 0 Explorer 0 Win Type - Total 1 Types 1/0/0/0/0/0/0/0/0/0 Lore% 35 Gallery% 38 Achievement% 25 Wizard Run 0 Options --------- Layout 1 ASCII 0 Keyboard 0 Movement Numpad Keybinds 0 Fullscreen 2 Font 24/Smallcaps Map View 50x35 Zoom Use 0% Tactical HUD 1 Map Filters NONE Filters NONE Steam 1 RUN: e9d85bc8-e088-423a-a550-2bdc92b610a4